bitfinex/quotes_BTCUSD_20241020
["timestamp","ask_amount","ask_price","bid_price","bid_amount"]
[1729426081234,0.52111157,68429.0,68428.0,0.001654]
[1729426081448,0.63059932,68429.0,68428.0,0.001654]
[1729426081869,0.52111157,68429.0,68428.0,0.001654]
[1729426082269,0.63060146,68429.0,68428.0,0.001654]
[1729426082504,0.52111157,68429.0,68428.0,0.001654]
[1729426087350,0.54022953,68429.0,68428.0,0.001654]
[1729426088275,0.52111157,68429.0,68428.0,0.001654]
[1729426090250,0.42921157,68429.0,68428.0,0.001654]
[1729426091152,0.53875547,68429.0,68428.0,0.001654]
[1729426091408,0.42921157,68429.0,68428.0,0.001654]
[1729426091637,0.51684446,68429.0,68428.0,0.001654]
[1729426101085,0.51682122,68429.0,68428.0,0.001654]
[1729426103493,0.42921157,68429.0,68428.0,0.001654]
[1729426103717,0.51682122,68429.0,68428.0,0.001654]
[1729426104322,0.42921157,68429.0,68428.0,0.001654]
[1729426107795,0.42690925,68429.0,68428.0,0.001654]
[1729426111861,0.49261028,68429.0,68428.0,0.001654]
[1729426112326,0.42690925,68429.0,68428.0,0.001654]
[1729426114948,0.49260837,68429.0,68428.0,0.001654]
[1729426115178,0.51451581,68429.0,68428.0,0.001654]
[1729426115835,0.51450554,68429.0,68428.0,0.001654]
[1729426119747,0.42690925,68429.0,68428.0,0.001654]
[1729426128431,0.42890925,68429.0,68428.0,0.001654]
[1729426128634,0.42690925,68429.0,68428.0,0.001654]
[1729426130128,0.53641679,68429.0,68428.0,0.001654]
[1729426130768,0.53643073,68429.0,68428.0,0.001654]
[1729426139898,0.42690925,68429.0,68428.0,0.001654]
[1729426162410,0.42471687,68429.0,68428.0,0.001654]
[1729426162618,0.53426812,68429.0,68428.0,0.001654]
[1729426163251,0.53646033,68429.0,68428.0,0.001654]
[1729426163446,0.53546033,68429.0,68428.0,0.001654]
[1729426163786,0.53545804,68429.0,68428.0,0.001654]
[1729426164016,0.51258615,68429.0,68428.0,0.001654]
[1729426164224,0.51358615,68429.0,68428.0,0.001654]
[1729426168737,0.5135834,68429.0,68428.0,0.001654]
[1729426173784,0.51358644,68429.0,68428.0,0.001654]
[1729426175202,0.40403719,68429.0,68428.0,0.001654]
[1729426175408,0.51358644,68429.0,68428.0,0.001654]
[1729426175846,0.40403719,68429.0,68428.0,0.001654]
[1729426176047,0.51358644,68429.0,68428.0,0.001654]
[1729426176257,0.40403719,68429.0,68428.0,0.001654]
[1729426182199,0.51358001,68429.0,68428.0,0.001654]
[1729426182870,0.51358285,68429.0,68428.0,0.001654]
[1729426183520,0.40403719,68429.0,68428.0,0.001654]
[1729426183733,0.51358285,68429.0,68428.0,0.001654]
[1729426185070,0.51358004,68429.0,68428.0,0.001654]
[1729426185511,0.40403719,68429.0,68428.0,0.001654]
[1729426185725,0.51358011,68429.0,68428.0,0.001654]
[1729426190075,0.40403719,68429.0,68428.0,0.001654]
[1729426190723,0.51357916,68429.0,68428.0,0.001654]
[1729426201751,0.40403719,68429.0,68428.0,0.001654]
[1729426201988,0.49167467,68429.0,68428.0,0.001654]
[1729426202247,0.40403719,68429.0,68428.0,0.001654]
[1729426202945,0.49167394,68429.0,68428.0,0.001654]
[1729426203156,0.40403719,68429.0,68428.0,0.001654]
[1729426204303,0.51358231,68429.0,68428.0,0.001654]
[1729426205837,0.40403719,68429.0,68428.0,0.001654]
[1729426206284,0.51358231,68429.0,68428.0,0.001654]
[1729426214320,0.51258231,68429.0,68428.0,0.001654]
[1729426214751,0.51258231,68429.0,68428.0,0.099954]
[1729426214967,0.40303719,68429.0,68428.0,0.099954]
[1729426215648,0.39361092,68429.0,68428.0,0.099954]
[1729426215866,0.40449022,68429.0,68428.0,0.099954]
[1729426221372,0.4921282,68429.0,68428.0,0.099954]
[1729426222236,0.40449022,68429.0,68428.0,0.099954]
[1729426224045,0.47021506,68429.0,68428.0,0.099954]
[1729426242047,0.40449022,68429.0,68428.0,0.001654]
[1729426242455,0.47021506,68429.0,68428.0,0.001654]
[1729426242877,0.40449022,68429.0,68428.0,0.001654]
[1729426256273,0.47020713,68429.0,68428.0,0.001654]
[1729426260699,0.53592974,68429.0,68428.0,0.001654]
[1729426260945,0.47021283,68429.0,68428.0,0.001654]
[1729426263448,0.40449022,68429.0,68428.0,0.001654]
[1729426263663,0.47021877,68429.0,68428.0,0.001654]
[1729426264973,0.40449022,68429.0,68428.0,0.001654]
[1729426288765,0.40449022,68429.0,68428.0,0.001654]
[1729426300403,0.47021909,68429.0,68428.0,0.001654]
[1729426303755,0.47022384,68429.0,68428.0,0.001654]
[1729426322178,0.47022626,68429.0,68428.0,0.001654]
[1729426322621,0.56902626,68429.0,68428.0,0.001654]
[1729426323334,0.6818589,68429.0,68428.0,0.001654]
[1729426323598,0.50329022,68429.0,68428.0,0.001654]
[1729426324087,0.50429022,68429.0,68428.0,0.001654]
[1729426324307,0.61384885,68429.0,68428.0,0.001654]
[1729426326399,0.50429022,68429.0,68428.0,0.001654]
[1729426329343,0.59189084,68429.0,68428.0,0.001654]
[1729426336881,0.5918739,68429.0,68428.0,0.001654]
[1729426341964,0.59186925,68429.0,68428.0,0.001654]
[1729426348561,0.7408284,68429.0,68428.0,0.001654]
[1729426349455,0.59186925,68429.0,68428.0,0.001654]
[1729426353674,0.49306925,68429.0,68428.0,0.001654]
[1729426364379,0.40549022,68429.0,68428.0,0.001654]
[1729426368305,0.51500513,68429.0,68428.0,0.001654]
[1729426371002,0.40549022,68429.0,68428.0,0.001654]
[1729426371386,0.51500513,68429.0,68428.0,0.001654]
[1729426371593,0.40549022,68429.0,68428.0,0.001654]
[1729426371805,0.51504322,68429.0,68428.0,0.001654]
[1729426372228,0.40549022,68429.0,68428.0,0.001654]
[1729426372654,0.51504322,68429.0,68428.0,0.001654]
[1729426373501,0.40549022,68429.0,68428.0,0.001654]
[1729426373715,0.51504322,68429.0,68428.0,0.001654]
[1729426373929,0.40549022,68429.0,68428.0,0.001654]
[1729426374136,0.51503799,68429.0,68428.0,0.001654]
[1729426374346,0.51503927,68429.0,68428.0,0.001654]
[1729426375600,0.40549022,68429.0,68428.0,0.001654]
[1729426381347,0.51502421,68429.0,68428.0,0.001654]
[1729426381559,0.40549022,68429.0,68428.0,0.001654]
[1729426383205,0.51502044,68429.0,68428.0,0.001654]
[1729426383832,0.51502013,68429.0,68428.0,0.001654]
[1729426384241,0.40549022,68429.0,68428.0,0.001654]
[1729426385543,0.51501929,68429.0,68428.0,0.001654]
[1729426385982,0.40549022,68429.0,68428.0,0.001654]
[1729426392010,0.40549022,68429.0,68428.0,0.024354]
[1729426394291,0.51500581,68429.0,68428.0,0.024354]
[1729426394719,0.51500496,68429.0,68428.0,0.024354]
[1729426394927,0.40549022,68429.0,68428.0,0.024354]
[1729426395339,0.51500512,68429.0,68428.0,0.024354]
[1729426395724,0.50412582,68429.0,68428.0,0.024354]
[1729426395938,0.40738818,68429.0,68428.0,0.024354]
[1729426396198,0.51690157,68429.0,68428.0,0.024354]
[1729426396665,0.40738818,68429.0,68428.0,0.024354]
[1729426397144,0.51690243,68429.0,68428.0,0.024354]
[1729426397371,0.40738818,68429.0,68428.0,0.024354]
[1729426397833,0.51690257,68429.0,68428.0,0.024354]
[1729426398070,0.40738818,68429.0,68428.0,0.024354]
[1729426399235,0.51689954,68429.0,68428.0,0.024354]
[1729426399448,0.40738818,68429.0,68428.0,0.024354]
[1729426401036,0.51689885,68429.0,68428.0,0.024354]
[1729426401884,0.51690049,68429.0,68428.0,0.024354]
[1729426403238,0.51690137,68429.0,68428.0,0.024354]
[1729426406322,0.51470916,68429.0,68428.0,0.024354]
[1729426406557,0.51690141,68429.0,68428.0,0.024354]
[1729426411603,0.49420141,68429.0,68428.0,0.024354]
[1729426413525,0.4942102,68429.0,68428.0,0.024354]
[1729426414735,0.38468822,68429.0,68428.0,0.024354]
[1729426415435,0.49421028,68429.0,68428.0,0.024354]
[1729426415692,0.38468822,68429.0,68428.0,0.024354]
[1729426415924,0.49421009,68429.0,68428.0,0.024354]
[1729426416170,0.38468822,68429.0,68428.0,0.024354]
[1729426416697,0.49421364,68429.0,68428.0,0.024354]
[1729426416922,0.49504064,68429.0,68428.0,0.024354]
[1729426418438,0.49504499,68429.0,68428.0,0.024354]
[1729426418643,0.49504478,68429.0,68428.0,0.024354]
[1729426421142,0.38551522,68429.0,68428.0,0.024354]
[1729426422619,0.4950513,68429.0,68428.0,0.024354]
[1729426423094,0.38551522,68429.0,68428.0,0.024354]
[1729426423322,0.44234909,68429.0,68428.0,0.024354]
[1729426425711,0.442351,68429.0,68428.0,0.024354]
[1729426429636,0.28011522,68429.0,68428.0,0.024354]
[1729426432355,0.37637437,68429.0,68428.0,0.024354]
[1729426432581,0.46400329,68429.0,68428.0,0.024354]
[1729426433030,0.4115643,68429.0,68428.0,0.024354]
[1729426439732,0.52110008,68429.0,68428.0,0.024354]
[1729426442476,0.4115643,68429.0,68428.0,0.024354]
[1729426444288,0.52110777,68429.0,68428.0,0.024354]
[1729426444503,0.4115643,68429.0,68428.0,0.024354]
[1729426446407,0.52110754,68429.0,68428.0,0.024354]
[1729426446789,0.4115643,68429.0,68428.0,0.024354]
[1729426447441,0.52110693,68429.0,68428.0,0.024354]
[1729426447645,0.4115643,68429.0,68428.0,0.024354]
[1729426448480,0.52110781,68429.0,68428.0,0.024354]
[1729426448710,0.52110864,68429.0,68428.0,0.024354]
[1729426448918,0.4115643,68429.0,68428.0,0.024354]
[1729426450009,0.52110833,68429.0,68428.0,0.024354]
[1729426450459,0.4115643,68429.0,68428.0,0.024354]
[1729426450694,0.5211073,68429.0,68428.0,0.024354]
[1729426450923,0.4115643,68429.0,68428.0,0.024354]
[1729426451616,0.52110758,68429.0,68428.0,0.024354]
[1729426452045,0.52110818,68429.0,68428.0,0.024354]
[1729426452459,0.4115643,68429.0,68428.0,0.024354]
[1729426453968,0.52110749,68429.0,68428.0,0.024354]
[1729426454207,0.4115643,68429.0,68428.0,0.024354]
[1729426455986,0.52110888,68429.0,68428.0,0.024354]
[1729426457695,0.4115643,68429.0,68428.0,0.024354]
[1729426458153,0.52110817,68429.0,68428.0,0.024354]
[1729426458377,0.54397916,68429.0,68428.0,0.024354]
[1729426458592,0.54397873,68429.0,68428.0,0.024354]
[1729426459280,0.43443529,68429.0,68428.0,0.024354]
[1729426462459,0.4115643,68429.0,68428.0,0.024354]
[1729426493472,0.4115643,68429.0,68428.0,0.097454]
[1729426506360,0.40937205,68429.0,68428.0,0.097454]
[1729426507812,0.40837205,68429.0,68428.0,0.097454]
[1729426508065,0.51795906,68429.0,68428.0,0.192254]
[1729426509295,0.40837205,68429.0,68428.0,0.192254]
[1729426509779,0.47412405,68429.0,68428.0,0.192254]
[1729426510217,0.40837205,68429.0,68428.0,0.192254]
[1729426511839,0.45219205,68429.0,68428.0,0.192254]
[1729426516166,0.40837205,68429.0,68428.0,0.192254]
[1729426528966,0.47406841,68429.0,68428.0,0.097454]
[1729426529175,0.40837205,68429.0,68428.0,0.097454]
[1729426529643,0.45217106,68429.0,68428.0,0.097454]
[1729426530068,0.45217083,68429.0,68428.0,0.097454]
[1729426530240,0.40837205,68429.0,68428.0,0.097454]
[1729426530633,0.47406841,68429.0,68428.0,0.097454]
[1729426530834,0.40837205,68429.0,68428.0,0.097454]
[1729426532252,0.45217122,68429.0,68428.0,0.097454]
[1729426533278,0.40837205,68429.0,68428.0,0.097454]
[1729426533514,0.47406841,68429.0,68428.0,0.097454]
[1729426533704,0.40837205,68429.0,68428.0,0.097454]
[1729426536369,0.47406841,68429.0,68428.0,0.097454]
[1729426536722,0.40837205,68429.0,68428.0,0.097454]
[1729426537919,0.47406841,68429.0,68428.0,0.097454]
[1729426540169,0.47407787,68429.0,68428.0,0.097454]
[1729426542035,0.40837205,68429.0,68428.0,0.097454]
[1729426542264,0.47407787,68429.0,68428.0,0.097454]
[1729426544899,0.40837205,68429.0,68428.0,0.097454]
[1729426545952,0.47408626,68429.0,68428.0,0.097454]
[1729426547418,0.47408858,68429.0,68428.0,0.097454]
[1729426549253,0.40837205,68429.0,68428.0,0.097454]
[1729426549827,0.47409396,68429.0,68428.0,0.097454]
[1729426550212,0.40837205,68429.0,68428.0,0.097454]
[1729426550438,0.47409605,68429.0,68428.0,0.097454]
[1729426551207,0.40837205,68429.0,68428.0,0.097454]
[1729426551416,0.47409897,68429.0,68428.0,0.097454]
[1729426551837,0.40837205,68429.0,68428.0,0.097454]
[1729426552446,0.47410195,68429.0,68428.0,0.097454]
[1729426552850,0.40837205,68429.0,68428.0,0.097454]
[1729426553201,0.47410447,68429.0,68428.0,0.097454]
[1729426553640,0.47410438,68429.0,68428.0,0.097454]
[1729426553836,0.40837205,68429.0,68428.0,0.097454]
[1729426554898,0.47410545,68429.0,68428.0,0.097454]
[1729426555047,0.49601599,68429.0,68428.0,0.097454]
[1729426555249,0.40837205,68429.0,68428.0,0.097454]
[1729426566567,0.51793344,68429.0,68428.0,0.097454]
[1729426568083,0.5179333,68429.0,68428.0,0.097454]
[1729426569099,0.40837205,68429.0,68428.0,0.097454]
[1729426570237,0.51793519,68429.0,68428.0,0.097454]
[1729426573107,0.5179304,68429.0,68428.0,0.097454]
[1729426573572,0.40837205,68429.0,68428.0,0.097454]
[1729426575454,0.40937205,68429.0,68428.0,0.097454]
[1729426576153,0.40970139,68429.0,68428.0,0.097454]
[1729426579244,0.51924826,68429.0,68428.0,0.097454]
[1729426594446,0.40970139,68429.0,68428.0,0.097454]
[1729426595484,0.51924826,68429.0,68428.0,0.097454]
[1729426595724,0.40970139,68429.0,68428.0,0.097454]
[1729426596380,0.51924826,68429.0,68428.0,0.097454]
[1729426596823,0.51824826,68429.0,68428.0,0.097454]
[1729426597053,0.51924826,68429.0,68428.0,0.097454]
[1729426601450,0.40870139,68429.0,68428.0,0.097454]
[1729426604971,0.51824826,68429.0,68428.0,0.097454]
[1729426606963,0.51827684,68429.0,68428.0,0.097454]
[1729426608241,0.37214084,68429.0,68428.0,0.097454]
[1729426609129,0.35022949,68429.0,68428.0,0.097454]
[1729426609354,0.26256539,68429.0,68428.0,0.097454]
[1729426609539,0.35022949,68429.0,68428.0,0.097454]
[1729426610180,0.40870139,68429.0,68428.0,0.097454]
[1729426610413,0.49636549,68429.0,68428.0,0.097454]
[1729426611698,0.40870139,68429.0,68428.0,0.097454]
[1729426611921,0.49635922,68429.0,68428.0,0.097454]
[1729426612855,0.40870139,68429.0,68428.0,0.097454]
[1729426613754,0.49635922,68429.0,68428.0,0.097454]
[1729426614628,0.40870139,68429.0,68428.0,0.097454]
[1729426615072,0.49635117,68429.0,68428.0,0.097454]
[1729426616674,0.4963522,68429.0,68428.0,0.097454]
[1729426617318,0.40970139,68429.0,68428.0,0.097454]
[1729426617539,0.50380139,68429.0,68428.0,0.097454]
[1729426628599,0.40970139,68429.0,68428.0,0.097454]
[1729426630388,0.49735877,68429.0,68428.0,0.097454]
[1729426630823,0.40970139,68429.0,68428.0,0.097454]
[1729426631041,0.4973585,68429.0,68428.0,0.097454]
[1729426631755,0.40970139,68429.0,68428.0,0.097454]
[1729426632248,0.49735785,68429.0,68428.0,0.097454]
[1729426632476,0.49735852,68429.0,68428.0,0.097454]
[1729426632700,0.40970139,68429.0,68428.0,0.097454]
[1729426633840,0.68105939,68429.0,68428.0,0.097454]
[1729426634064,0.5714894,68429.0,68428.0,0.097454]
[1729426634281,0.68105939,68429.0,68428.0,0.097454]
[1729426634759,0.57149092,68429.0,68428.0,0.097454]
[1729426634953,0.68106266,68429.0,68428.0,0.097454]
[1729426637473,0.57149092,68429.0,68428.0,0.097454]
[1729426637927,0.68106708,68429.0,68428.0,0.097454]
[1729426639787,0.68108031,68429.0,68428.0,0.097454]
[1729426640739,0.57150144,68429.0,68428.0,0.097454]
[1729426640929,0.68108031,68429.0,68428.0,0.097454]
[1729426641371,0.57150144,68429.0,68428.0,0.097454]
[1729426641587,0.68108621,68429.0,68428.0,0.097454]
[1729426642243,0.57150144,68429.0,68428.0,0.097454]
[1729426642457,0.68108621,68429.0,68428.0,0.097454]
[1729426643536,0.57150144,68429.0,68428.0,0.097454]
[1729426643753,0.68108297,68429.0,68428.0,0.097454]
[1729426643970,0.57150144,68429.0,68428.0,0.097454]
[1729426644414,0.6810834,68429.0,68428.0,0.097454]
[1729426644635,0.57150144,68429.0,68428.0,0.097454]
[1729426645075,0.68108193,68429.0,68428.0,0.097454]
[1729426645491,0.57150144,68429.0,68428.0,0.097454]
[1729426646373,0.68108306,68429.0,68428.0,0.097454]
[1729426647251,0.57150144,68429.0,68428.0,0.097454]
[1729426647455,0.681086,68429.0,68428.0,0.097454]
[1729426648727,0.57150144,68429.0,68428.0,0.097454]
[1729426648922,0.6810845,68429.0,68428.0,0.097454]
[1729426649344,0.68108409,68429.0,68428.0,0.097454]
[1729426649548,0.68108757,68429.0,68428.0,0.097454]
[1729426649758,0.59437731,68429.0,68428.0,0.097454]
[1729426649997,0.70396134,68429.0,68428.0,0.097454]
[1729426651594,0.59437731,68429.0,68428.0,0.097454]
[1729426651814,0.70396029,68429.0,68428.0,0.097454]
[1729426652030,0.59437731,68429.0,68428.0,0.097454]
[1729426652937,0.57150577,68429.0,68428.0,0.097454]
[1729426654059,0.68108961,68429.0,68428.0,0.097454]
[1729426654290,0.57150577,68429.0,68428.0,0.097454]
[1729426657599,0.68109012,68429.0,68428.0,0.097454]
[1729426657824,0.6810902,68429.0,68428.0,0.097454]
[1729426658708,0.57150577,68429.0,68428.0,0.097454]
[1729426659359,0.5715132,68429.0,68428.0,0.097454]
[1729426662001,0.68110529,68429.0,68428.0,0.097454]
[1729426662224,0.5715132,68429.0,68428.0,0.097454]
[1729426666206,0.5715132,68429.0,68428.0,0.024354]
[1729426667698,0.5715132,68429.0,68428.0,0.097454]
[1729426669061,0.68111061,68429.0,68428.0,0.097454]
[1729426669730,0.57151785,68429.0,68428.0,0.097454]
[1729426669955,0.68110752,68429.0,68428.0,0.097454]
[1729426670643,0.68110765,68429.0,68428.0,0.097454]
[1729426673006,0.57151785,68429.0,68428.0,0.097454]
[1729426673972,0.6811094,68429.0,68428.0,0.097454]
[1729426674189,0.57151874,68429.0,68428.0,0.097454]
[1729426674865,0.68110871,68429.0,68428.0,0.097454]
[1729426675083,0.57151874,68429.0,68428.0,0.097454]
[1729426675305,0.6811086,68429.0,68428.0,0.097454]
[1729426675783,0.57151874,68429.0,68428.0,0.097454]
[1729426676003,0.68110862,68429.0,68428.0,0.097454]
[1729426676500,0.57151874,68429.0,68428.0,0.097454]
[1729426676725,0.68110877,68429.0,68428.0,0.097454]
[1729426677608,0.57151874,68429.0,68428.0,0.097454]
[1729426678051,0.68110982,68429.0,68428.0,0.097454]
[1729426678725,0.57151874,68429.0,68428.0,0.097454]
[1729426679176,0.68111084,68429.0,68428.0,0.097454]
[1729426679645,0.57151874,68429.0,68428.0,0.097454]
[1729426681480,0.68111303,68429.0,68428.0,0.097454]
[1729426681962,0.68111151,68429.0,68428.0,0.097454]
[1729426682201,0.57151874,68429.0,68428.0,0.097454]
[1729426683121,0.68111243,68429.0,68428.0,0.097454]
[1729426686391,0.57151874,68429.0,68428.0,0.097454]
[1729426686594,0.40970139,68429.0,68428.0,0.097454]
[1729426688146,0.68110627,68429.0,68428.0,0.097454]
[1729426688895,0.68111732,68429.0,68428.0,0.097454]
[1729426691075,0.68111421,68429.0,68428.0,0.097454]
[1729426693405,0.79060236,68429.0,68428.0,0.097454]
[1729426693618,0.57152351,68429.0,68428.0,0.097454]
[1729426694039,0.57151427,68429.0,68428.0,0.097454]
[1729426695859,0.57351427,68429.0,68428.0,0.097454]
[1729426696076,0.79259312,68429.0,68428.0,0.097454]
[1729426696307,0.72112517,68429.0,68428.0,0.097454]
[1729426696527,0.85263024,68429.0,68428.0,0.097454]
[1729426696751,0.76553234,68429.0,68428.0,0.097454]
[1729426696983,0.70942144,68429.0,68428.0,0.097454]
[1729426697638,0.84085101,68429.0,68428.0,0.097454]
[1729426697851,0.96196999,68429.0,68428.0,0.097454]
[1729426698068,2.21776999,68429.0,68428.0,0.097454]
[1729426698731,2.08634042,68429.0,68428.0,0.097454]
[1729426698952,2.21763398,68429.0,68428.0,0.097454]
[1729426699669,2.23920192,68429.0,68428.0,0.097454]
[1729426700537,2.19479475,68429.0,68428.0,0.097454]
[1729426701383,2.06338451,68429.0,68428.0,0.097454]
[1729426703561,1.94217891,68429.0,68428.0,0.097454]
[1729426713121,1.99828981,68429.0,68428.0,0.097454]
[1729426713353,1.99823549,68429.0,68428.0,0.097454]
[1729426713561,2.02111025,68429.0,68428.0,0.097454]
[1729426714909,1.96499935,68429.0,68428.0,0.097454]
[1729426716237,2.1139585,68429.0,68428.0,0.097454]
[1729426718140,1.96499678,68429.0,68428.0,0.097454]
[1729426722956,1.9650128,68429.0,68428.0,0.097454]
[1729426724506,2.14069471,68429.0,68428.0,0.097454]
[1729426724756,2.42255415,68429.0,68428.0,0.097454]
[1729426724988,2.39967939,68429.0,68428.0,0.097454]
[1729426725204,2.26837276,68429.0,68428.0,0.097454]
[1729426725641,2.41733191,68429.0,68428.0,0.097454]
[1729426727637,2.0295714,68429.0,68428.0,0.097454]
[1729426727865,2.41730745,68429.0,68428.0,0.097454]
[1729426732409,2.0295714,68429.0,68428.0,0.097454]
[1729426732614,2.41732548,68429.0,68428.0,0.097454]
[1729426745360,2.1911356,68429.0,68428.0,0.097454]
[1729426745592,2.41749687,68429.0,68428.0,0.097454]
[1729426746778,2.42749687,68429.0,68428.0,0.097454]
[1729426755116,2.42747153,68429.0,68428.0,0.097454]
[1729426755779,2.52747153,68429.0,68428.0,0.097454]
[1729426756223,2.51436493,68429.0,68428.0,0.097454]
[1729426756438,2.47190848,68429.0,68428.0,0.097454]
[1729426757106,2.61967996,68429.0,68428.0,0.097454]
[1729426758909,2.64267996,68429.0,68428.0,0.097454]
[1729426764755,2.64277096,68429.0,68428.0,0.097454]
[1729426765379,2.49497438,68429.0,68428.0,0.097454]
[1729426772494,2.25451523,68429.0,68428.0,0.097454]
[1729426779307,2.25475389,68429.0,68428.0,0.097454]
[1729426783847,1.8665492,68429.0,68428.0,0.097454]
[1729426784060,2.25477215,68429.0,68428.0,0.097454]
[1729426785536,2.27764897,68429.0,68428.0,0.097454]
[1729426785749,2.42660812,68429.0,68428.0,0.097454]
[1729426795525,2.42660812,68429.0,68428.0,0.07983759]
[1729426798618,2.42660812,68429.0,68428.0,0.08149159]
[1729426802007,2.42682368,68429.0,68428.0,0.08149159]
[1729426803302,2.52322368,68429.0,68428.0,0.08149159]
[1729426805319,2.57532379,68429.0,68428.0,0.02303559]
[1729426805765,0.282143,68426.0,68425.0,0.00028]
[1729426806013,0.88553562,68426.0,68425.0,0.00028]
[1729426806199,0.89748688,68426.0,68425.0,0.00028]
[1729426809222,0.89740623,68426.0,68425.0,0.00028]
[1729426810546,0.89745438,68426.0,68425.0,0.001934]
[1729426810754,2.15325438,68426.0,68425.0,0.001934]
[1729426811181,2.24965438,68426.0,68425.0,0.001934]
[1729426815243,2.27253233,68426.0,68425.0,0.001934]
[1729426817747,2.49907596,68426.0,68425.0,0.001934]
[1729426819337,2.55117607,68426.0,68425.0,0.001934]
[1729426823392,2.55101616,68426.0,68425.0,0.001934]
[1729426823593,2.45461616,68426.0,68425.0,0.001934]
[1729426824490,2.45461481,68426.0,68425.0,0.001934]
[1729426824702,2.46162368,68426.0,68425.0,0.001934]
[1729426824914,2.46381662,68426.0,68425.0,0.001934]
[1729426825801,2.31485747,68426.0,68425.0,0.001934]
[1729426827278,2.31285747,68426.0,68425.0,0.001934]
[1729426827488,2.31485747,68426.0,68425.0,0.001934]
[1729426828142,2.31487051,68426.0,68425.0,0.001934]
[1729426829489,2.31287051,68426.0,68425.0,0.001934]
[1729426829703,2.31487051,68426.0,68425.0,0.001934]
[1729426830348,2.46382966,68426.0,68425.0,0.001934]
[1729426830564,2.30207454,68426.0,68425.0,0.001934]
[1729426832905,2.46383585,68426.0,68425.0,0.001934]
[1729426833117,2.30207454,68426.0,68425.0,0.001934]
[1729426834346,2.31488111,68426.0,68425.0,0.001934]
[1729426834754,2.31288111,68426.0,68425.0,0.001934]
[1729426835598,2.31488111,68426.0,68425.0,0.001934]
[1729426836046,2.31288111,68426.0,68425.0,0.001934]
[1729426836254,2.31488111,68426.0,68425.0,0.001934]
[1729426836475,2.46384026,68426.0,68425.0,0.001934]
[1729426836703,2.51594037,68426.0,68425.0,0.001934]
[1729426837761,2.12771748,68426.0,68425.0,0.001934]
[1729426837973,2.51597813,68426.0,68425.0,0.001934]
[1729426838622,2.60717813,68426.0,68425.0,0.001934]
[1729426839028,2.60717956,68426.0,68425.0,0.001934]
[1729426840510,2.60717101,68426.0,68425.0,0.001934]
[1729426841162,2.44540286,68426.0,68425.0,0.001934]
[1729426842467,2.60716475,68426.0,68425.0,0.001934]
[1729426842673,2.60716375,68426.0,68425.0,0.001934]
[1729426844202,2.44539447,68426.0,68425.0,0.001934]
[1729426846431,2.44539447,68426.0,68421.0,0.001654]
[1729426846432,0.003,68422.0,68421.0,0.001654]
[1729426846637,0.46035737,68422.0,68421.0,0.001654]
[1729426846869,0.47149154,68422.0,68421.0,0.001654]
[1729426848416,0.63329108,68422.0,68421.0,0.001654]
[1729426848853,0.47149154,68422.0,68421.0,0.001654]
[1729426849504,0.63329683,68422.0,68421.0,0.001654]
[1729426849685,0.50204061,68422.0,68421.0,0.001654]
[1729426849916,0.66384742,68422.0,68421.0,0.001654]
[1729426850335,0.66385728,68422.0,68421.0,0.001654]
[1729426850773,0.50204061,68422.0,68421.0,0.001654]
[1729426851451,0.68534663,68422.0,68421.0,0.001654]
[1729426852261,1.94114663,68422.0,68421.0,0.001654]
[1729426852465,1.94114728,68422.0,68421.0,0.001654]
[1729426852899,2.16770011,68422.0,68421.0,0.001654]
[1729426855070,2.26770011,68422.0,68421.0,0.001654]
[1729426857150,2.26771252,68422.0,68421.0,0.001654]
[1729426861013,2.26768566,68422.0,68421.0,0.001654]
[1729426861461,0.172153,68421.0,68420.0,0.930198]
[1729426861615,0.85325704,68421.0,68420.0,0.930198]
[1729426861811,0.86662342,68421.0,68420.0,0.930198]
[1729426862032,0.70480599,68421.0,68420.0,0.930198]
[1729426864088,1.96060599,68421.0,68420.0,0.930198]
[1729426864471,2.10956514,68421.0,68420.0,0.930198]
[1729426864887,2.16166525,68421.0,68420.0,0.930198]
[1729426865534,2.16162839,68421.0,68420.0,0.930198]
[1729426868548,2.26162839,68421.0,68420.0,0.930198]
[1729426869203,2.40955168,68421.0,68420.0,0.930198]
[1729426869844,2.26162839,68421.0,68420.0,0.930198]
[1729426871607,2.26162839,68421.0,68420.0,0.900967]
[1729426871821,2.30828296,68421.0,68420.0,0.871736]
[1729426872457,2.15932381,68421.0,68420.0,0.813274]
[1729426872666,1.93281627,68421.0,68420.0,0.813274]
[1729426872895,2.15925854,68421.0,68420.0,0.813274]
[1729426873101,2.15925854,68421.0,68420.0,0.814928]
[1729426874834,2.16925854,68421.0,68420.0,0.814928]
[1729426875037,2.31821769,68421.0,68420.0,0.814928]
[1729426876113,2.09177542,68421.0,68420.0,0.814928]
[1729426879592,2.4799262,68421.0,68420.0,0.814928]
[1729426880715,2.42782609,68421.0,68420.0,0.814928]
[1729426880922,2.43044447,68421.0,68420.0,0.814928]
[1729426881574,2.23483075,68421.0,68420.0,0.814928]
[1729426881830,2.38269772,68421.0,68420.0,0.814928]
[1729426882493,2.23483075,68421.0,68420.0,0.814928]
[1729426883139,2.28693086,68421.0,68420.0,0.814928]
[1729426885986,2.28775786,68421.0,68420.0,0.814928]
[1729426886630,2.43671701,68421.0,68420.0,0.814928]
[1729426888957,2.4367509,68421.0,68420.0,0.814928]
[1729426889410,2.28779175,68421.0,68420.0,0.814928]
[1729426893836,2.28781174,68421.0,68420.0,0.814928]
[1729426897861,2.28781174,68421.0,68420.0,0.812328]
[1729426903882,2.1260598,68421.0,68420.0,0.812328]
[1729426904761,2.28786636,68421.0,68420.0,0.812328]
[1729426904970,2.28786648,68421.0,68420.0,0.812328]
[1729426906064,2.43682563,68421.0,68420.0,0.812328]
[1729426911534,2.43682563,68421.0,68420.0,0.810528]
[1729426913324,2.43697841,68421.0,68420.0,0.810528]
[1729426917119,2.27514,68421.0,68420.0,0.810528]
[1729426917579,2.43697947,68421.0,68420.0,0.810528]
[1729426918065,2.27514075,68421.0,68420.0,0.810528]
[1729426918303,2.43698033,68421.0,68420.0,0.810528]
[1729426918755,2.43698134,68421.0,68420.0,0.810528]
[1729426920603,2.43698134,68421.0,68420.0,0.781297]
[1729426921202,2.43698134,68421.0,68420.0,0.635142]
[1729426921560,2.43698011,68421.0,68420.0,0.635142]
[1729426923001,2.27514075,68421.0,68420.0,0.57668]
[1729426923901,2.43697729,68421.0,68420.0,0.57668]